[Event "Titled Tuesday Blitz May 10 Early 2022"]
[White "Liyanage, Ranindu Dilshan"]
[Black "Bettalli, Francesco"]
[WhiteFideId "9915834"]
[BlackFideId "2816453"]
[WhiteElo "1858"]
[BlackElo "2216"]
[Result "1-0"]
[Round "08"]
[TimeControl "180+1"]
[Date "2022.05.11"]
[WhiteClock "0:02:10"]
[BlackClock "0:01:57"]

1. d4 {[%clk 0:03:00]}  Nf6 {[%clk 0:02:56]} 2. Bf4 {[%clk 0:02:59]}  d5 {[%clk 0:02:56]} 3. e3 {[%clk 0:02:57]}  c5 {[%clk 0:02:56]} 4. Nf3 {[%clk 0:02:54]}  Nc6 {[%clk 0:02:57]} 5. Nc3 {[%clk 0:02:53]}  e6 {[%clk 0:02:51]} 6. Nb5 {[%clk 0:02:50]}  Qa5+ {[%clk 0:02:47]} 7. c3 {[%clk 0:02:40]}  e5 {[%clk 0:02:45]} 8. Nxe5 {[%clk 0:02:35]}  cxd4 {[%clk 0:02:35]} 9. Nxc6 {[%clk 0:02:25]}  bxc6 {[%clk 0:02:36]} 10. Bc7 {[%clk 0:02:26]}  Qa6 {[%clk 0:02:06]} 11. Nd6+ {[%clk 0:02:20]}  Bxd6 {[%clk 0:02:07]} 12. Bxa6 {[%clk 0:02:21]}  Bxc7 {[%clk 0:02:07]} 13. Bxc8 {[%clk 0:02:17]}  Rxc8 {[%clk 0:02:08]} 14. exd4 {[%clk 0:02:17]}  O-O {[%clk 0:02:09]} 15. O-O {[%clk 0:02:18]}  Rfe8 {[%clk 0:02:08]} 16. Qa4 {[%clk 0:02:17]}  a5 {[%clk 0:02:07]} 17. Rfe1 {[%clk 0:02:17]}  Ne4 {[%clk 0:02:06]} 18. f3 {[%clk 0:02:15]}  Nd6 {[%clk 0:02:04]} 19. Rxe8+ {[%clk 0:02:14]}  Nxe8 {[%clk 0:02:05]} 20. Re1 {[%clk 0:02:15]}  Kf8 {[%clk 0:02:05]} 21. g3 {[%clk 0:02:14]}  Bd6 {[%clk 0:02:04]} 22. Qxa5 {[%clk 0:02:13]}  Nf6 {[%clk 0:02:04]} 23. Qa6 {[%clk 0:02:13]}  Rc7 {[%clk 0:02:04]} 24. b4 {[%clk 0:02:12]}  g6 {[%clk 0:02:04]} 25. a4 {[%clk 0:02:13]}  Kg7 {[%clk 0:02:02]} 26. b5 {[%clk 0:02:13]}  Nd7 {[%clk 0:02:01]} 27. b6 {[%clk 0:02:11]}  Nb8 {[%clk 0:01:57]} 28. bxc7 {[%clk 0:02:10]} 1-0


[Site "https://www.chess.com"]

[Event "Titled Tuesday Blitz May 10 Early 2022"]
[White "Ljukin, Sergei"]
[Black "Legenia, Artem"]
[WhiteFideId "14102200"]
[BlackFideId "14136945"]
[WhiteElo "2312"]
[BlackElo "1936"]
[Result "1-0"]
[Round "08"]
[TimeControl "180+1"]
[Date "2022.05.11"]
[WhiteClock "0:01:18"]
[BlackClock "0:00:59"]

1. e4 {[%clk 0:02:54]}  Nf6 {[%clk 0:02:59]} 2. e5 {[%clk 0:02:54]}  Nd5 {[%clk 0:02:59]} 3. c4 {[%clk 0:02:55]}  Nb6 {[%clk 0:02:57]} 4. d4 {[%clk 0:02:55]}  d6 {[%clk 0:02:57]} 5. f4 {[%clk 0:02:55]}  dxe5 {[%clk 0:02:57]} 6. fxe5 {[%clk 0:02:55]}  Nc6 {[%clk 0:02:58]} 7. Be3 {[%clk 0:02:55]}  Bf5 {[%clk 0:02:58]} 8. Nc3 {[%clk 0:02:55]}  e6 {[%clk 0:02:58]} 9. Nf3 {[%clk 0:02:56]}  Bb4 {[%clk 0:02:58]} 10. Be2 {[%clk 0:02:43]}  O-O {[%clk 0:02:56]} 11. O-O {[%clk 0:02:43]}  Bxc3 {[%clk 0:02:52]} 12. bxc3 {[%clk 0:02:43]}  Bg4 {[%clk 0:02:36]} 13. c5 {[%clk 0:02:37]}  Nd5 {[%clk 0:02:16]} 14. Bd2 {[%clk 0:02:36]}  b6 {[%clk 0:02:14]} 15. Qa4 {[%clk 0:02:30]}  Nb8 {[%clk 0:01:40]} 16. c6 {[%clk 0:02:17]}  a6 {[%clk 0:01:15]} 17. c4 {[%clk 0:02:03]}  Ne7 {[%clk 0:01:15]} 18. d5 {[%clk 0:02:01]}  exd5 {[%clk 0:01:13]} 19. cxd5 {[%clk 0:02:01]}  Bxf3 {[%clk 0:01:07]} 20. Bxf3 {[%clk 0:02:01]}  Nxd5 {[%clk 0:01:07]} 21. Rad1 {[%clk 0:01:56]}  b5 {[%clk 0:01:04]} 22. Qb3 {[%clk 0:01:42]}  Nb6 {[%clk 0:01:01]} 23. Bb4 {[%clk 0:01:40]}  Qg5 {[%clk 0:01:01]} 24. Bxf8 {[%clk 0:01:39]}  Kxf8 {[%clk 0:01:02]} 25. Bd5 {[%clk 0:01:19]}  Nxd5 {[%clk 0:00:59]} 26. Qxd5 {[%clk 0:01:18]} 1-0


[Site "https://www.chess.com"]

[Event "Titled Tuesday Blitz May 10 Early 2022"]
[White "Maevsky, Nikolay"]
[Black "Hambleton, Aman"]
[WhiteFideId "4198220"]
[BlackFideId "2606577"]
[WhiteElo "2149"]
[BlackElo "2552"]
[Result "0-1"]
[Round "08"]
[TimeControl "180+1"]
[Date "2022.05.11"]
[WhiteClock "0:00:04"]
[BlackClock "0:00:06"]

1. d4 {[%clk 0:03:00]}  e5 {[%clk 0:02:56]} 2. dxe5 {[%clk 0:02:54]}  Nc6 {[%clk 0:02:55]} 3. Nf3 {[%clk 0:02:53]}  Qe7 {[%clk 0:02:56]} 4. g3 {[%clk 0:02:46]}  Nxe5 {[%clk 0:02:54]} 5. Bg2 {[%clk 0:02:46]}  Nf6 {[%clk 0:02:54]} 6. O-O {[%clk 0:02:41]}  d6 {[%clk 0:02:43]} 7. Nbd2 {[%clk 0:02:24]}  g6 {[%clk 0:02:34]} 8. b3 {[%clk 0:02:20]}  Bg7 {[%clk 0:02:30]} 9. Bb2 {[%clk 0:02:19]}  Nfd7 {[%clk 0:02:23]} 10. Qc1 {[%clk 0:02:16]}  O-O {[%clk 0:02:22]} 11. Re1 {[%clk 0:02:07]}  Nxf3+ {[%clk 0:02:07]} 12. Nxf3 {[%clk 0:02:05]}  Ne5 {[%clk 0:01:57]} 13. c4 {[%clk 0:01:52]}  c6 {[%clk 0:01:16]} 14. Qd2 {[%clk 0:01:29]}  Bg4 {[%clk 0:01:04]} 15. Rad1 {[%clk 0:01:22]}  Rad8 {[%clk 0:01:03]} 16. Ba3 {[%clk 0:01:08]}  Rfe8 {[%clk 0:00:17]} 17. Bxd6 {[%clk 0:00:29]}  Rxd6 {[%clk 0:00:13]} 18. Qxd6 {[%clk 0:00:26]}  Qxd6 {[%clk 0:00:12]} 19. Rxd6 {[%clk 0:00:22]}  Nxf3+ {[%clk 0:00:13]} 20. Bxf3 {[%clk 0:00:19]}  Bxf3 {[%clk 0:00:13]} 21. Kf1 {[%clk 0:00:16]}  Bc3 {[%clk 0:00:07]} 22. Rc1 {[%clk 0:00:10]}  Bxe2+ {[%clk 0:00:05]} 23. Kg2 {[%clk 0:00:11]}  Bb4 {[%clk 0:00:03]} 24. Rd7 {[%clk 0:00:10]}  a5 {[%clk 0:00:02]} 25. Rc2 {[%clk 0:00:06]}  g5 {[%clk 0:00:01]} 26. h3 {[%clk 0:00:06]}  h5 {[%clk 0:00:01]} 27. g4 {[%clk 0:00:05]}  hxg4 {[%clk 0:00:02]} 28. hxg4 {[%clk 0:00:06]}  Bxg4 {[%clk 0:00:03]} 29. Rd4 {[%clk 0:00:05]}  Bf5 {[%clk 0:00:03]} 30. Rc1 {[%clk 0:00:04]}  f6 {[%clk 0:00:03]} 31. Rcd1 {[%clk 0:00:04]}  Kf7 {[%clk 0:00:03]} 32. Rd8 {[%clk 0:00:04]}  Rxd8 {[%clk 0:00:03]} 33. Rxd8 {[%clk 0:00:04]}  Bb1 {[%clk 0:00:04]} 34. Rb8 {[%clk 0:00:03]}  Bxa2 {[%clk 0:00:04]} 35. Rxb7+ {[%clk 0:00:03]}  Kg6 {[%clk 0:00:04]} 36. Rb6 {[%clk 0:00:02]}  c5 {[%clk 0:00:05]} 37. Rb5 {[%clk 0:00:02]}  Bxb3 {[%clk 0:00:05]} 38. Rb6 {[%clk 0:00:03]}  a4 {[%clk 0:00:06]} 39. Ra6 {[%clk 0:00:02]}  a3 {[%clk 0:00:06]} 40. Ra7 {[%clk 0:00:03]}  a2 {[%clk 0:00:06]} 41. Ra6 {[%clk 0:00:03]}  Bc3 {[%clk 0:00:06]} 42. Ra3 {[%clk 0:00:03]}  Bxc4 {[%clk 0:00:06]} 43. Rb3 {[%clk 0:00:04]}  Bxb3 {[%clk 0:00:06]} 0-1


[Site "https://www.chess.com"]

[Event "Titled Tuesday Blitz May 10 Early 2022"]
[White "Mammadzada, Gunay"]
[Black "Friedel, Tom"]
[WhiteFideId "13403729"]
[BlackFideId "2002108"]
[WhiteElo "2242"]
[BlackElo "2337"]
[Result "1-0"]
[Round "08"]
[TimeControl "180+1"]
[Date "2022.05.11"]
[WhiteClock "0:00:24"]
[BlackClock "0:00:07"]

1. b3 {[%clk 0:03:00]}  d5 {[%clk 0:02:58]} 2. Bb2 {[%clk 0:03:01]}  Nf6 {[%clk 0:02:57]} 3. e3 {[%clk 0:02:59]}  Bg4 {[%clk 0:02:53]} 4. Be2 {[%clk 0:02:59]}  Bxe2 {[%clk 0:02:52]} 5. Qxe2 {[%clk 0:02:57]}  Nbd7 {[%clk 0:02:52]} 6. d4 {[%clk 0:02:58]}  e6 {[%clk 0:02:53]} 7. Nd2 {[%clk 0:02:58]}  Be7 {[%clk 0:02:52]} 8. f4 {[%clk 0:02:58]}  O-O {[%clk 0:02:51]} 9. Ngf3 {[%clk 0:02:58]}  c5 {[%clk 0:02:51]} 10. O-O {[%clk 0:02:58]}  Rc8 {[%clk 0:02:51]} 11. Rac1 {[%clk 0:02:55]}  Ne8 {[%clk 0:02:48]} 12. Ne5 {[%clk 0:02:54]}  Nd6 {[%clk 0:02:46]} 13. Rf3 {[%clk 0:02:50]}  cxd4 {[%clk 0:02:46]} 14. exd4 {[%clk 0:02:49]}  Nxe5 {[%clk 0:02:24]} 15. fxe5 {[%clk 0:02:39]}  Nf5 {[%clk 0:02:24]} 16. Qd3 {[%clk 0:02:24]}  Bg5 {[%clk 0:02:22]} 17. c3 {[%clk 0:02:14]}  Rc7 {[%clk 0:02:16]} 18. Rcf1 {[%clk 0:02:08]}  Bxd2 {[%clk 0:02:13]} 19. Qxd2 {[%clk 0:02:07]}  h6 {[%clk 0:02:09]} 20. Qd3 {[%clk 0:01:48]}  Qe7 {[%clk 0:01:58]} 21. Bc1 {[%clk 0:01:46]}  Nh4 {[%clk 0:01:39]} 22. Rg3 {[%clk 0:01:34]}  Ng6 {[%clk 0:01:38]} 23. Rg4 {[%clk 0:01:34]}  Rfc8 {[%clk 0:01:31]} 24. Bd2 {[%clk 0:01:32]}  a6 {[%clk 0:01:04]} 25. h4 {[%clk 0:01:32]}  h5 {[%clk 0:00:55]} 26. Rg5 {[%clk 0:01:29]}  Nxh4 {[%clk 0:00:50]} 27. Rxh5 {[%clk 0:01:27]}  Ng6 {[%clk 0:00:50]} 28. Rf3 {[%clk 0:01:25]}  Qa3 {[%clk 0:00:43]} 29. Rfh3 {[%clk 0:01:24]}  Qxa2 {[%clk 0:00:43]} 30. Bg5 {[%clk 0:01:10]}  f5 {[%clk 0:00:12]} 31. exf6 {[%clk 0:01:08]}  Kf7 {[%clk 0:00:09]} 32. Rh7 {[%clk 0:00:59]}  Rg8 {[%clk 0:00:09]} 33. fxg7 {[%clk 0:00:58]}  Rxg7 {[%clk 0:00:07]} 34. Bf6 {[%clk 0:00:24]} 1-0


[Site "https://www.chess.com"]

[Event "Titled Tuesday Blitz May 10 Early 2022"]
[White "Manukian, Artak"]
[Black "Qashashvili, Alexandre"]
[WhiteFideId "13301373"]
[BlackFideId "13600842"]
[WhiteElo "2406"]
[BlackElo "2316"]
[Result "1-0"]
[Round "08"]
[TimeControl "180+1"]
[Date "2022.05.11"]
[WhiteClock "0:00:08"]
[BlackClock "0:00:06"]

1. e4 {[%clk 0:03:00]}  c6 {[%clk 0:03:00]} 2. d4 {[%clk 0:03:00]}  d5 {[%clk 0:03:01]} 3. e5 {[%clk 0:03:00]}  Bf5 {[%clk 0:03:00]} 4. c4 {[%clk 0:03:01]}  e6 {[%clk 0:02:58]} 5. Nc3 {[%clk 0:03:00]}  Bb4 {[%clk 0:02:56]} 6. Qb3 {[%clk 0:02:59]}  Bxc3+ {[%clk 0:02:56]} 7. bxc3 {[%clk 0:03:00]}  Qb6 {[%clk 0:02:56]} 8. c5 {[%clk 0:03:00]}  Qxb3 {[%clk 0:02:55]} 9. axb3 {[%clk 0:03:01]}  Nd7 {[%clk 0:02:52]} 10. b4 {[%clk 0:03:01]}  a6 {[%clk 0:02:51]} 11. b5 {[%clk 0:03:00]}  cxb5 {[%clk 0:02:51]} 12. Bxb5 {[%clk 0:03:00]}  Rc8 {[%clk 0:02:51]} 13. Ba4 {[%clk 0:02:48]}  Ne7 {[%clk 0:02:49]} 14. Nf3 {[%clk 0:02:43]}  Nc6 {[%clk 0:02:48]} 15. O-O {[%clk 0:02:38]}  h6 {[%clk 0:02:47]} 16. Nd2 {[%clk 0:02:06]}  Ke7 {[%clk 0:02:42]} 17. Rd1 {[%clk 0:01:49]}  Rc7 {[%clk 0:02:32]} 18. Nf1 {[%clk 0:01:41]}  Rb8 {[%clk 0:02:30]} 19. Ne3 {[%clk 0:01:31]}  Bg6 {[%clk 0:02:29]} 20. c4 {[%clk 0:01:20]}  dxc4 {[%clk 0:02:20]} 21. d5 {[%clk 0:01:19]}  exd5 {[%clk 0:02:13]} 22. Nxd5+ {[%clk 0:01:18]}  Kd8 {[%clk 0:02:14]} 23. Nxc7 {[%clk 0:01:12]}  Kxc7 {[%clk 0:02:14]} 24. Bf4 {[%clk 0:01:04]}  Bd3 {[%clk 0:00:54]} 25. e6+ {[%clk 0:00:58]}  Nde5 {[%clk 0:00:54]} 26. Bxc6 {[%clk 0:00:47]}  Kxc6 {[%clk 0:00:54]} 27. Bxe5 {[%clk 0:00:47]}  Re8 {[%clk 0:00:51]} 28. exf7 {[%clk 0:00:47]}  Rf8 {[%clk 0:00:50]} 29. Bd6 {[%clk 0:00:44]}  Rxf7 {[%clk 0:00:50]} 30. f4 {[%clk 0:00:40]}  g6 {[%clk 0:00:38]} 31. Kf2 {[%clk 0:00:37]}  Rf6 {[%clk 0:00:36]} 32. Ke3 {[%clk 0:00:32]}  Re6+ {[%clk 0:00:35]} 33. Be5 {[%clk 0:00:23]}  g5 {[%clk 0:00:33]} 34. Rxd3 {[%clk 0:00:18]}  cxd3 {[%clk 0:00:32]} 35. Kxd3 {[%clk 0:00:19]}  gxf4 {[%clk 0:00:32]} 36. Bxf4 {[%clk 0:00:20]}  Kxc5 {[%clk 0:00:31]} 37. g4 {[%clk 0:00:19]}  b5 {[%clk 0:00:30]} 38. h4 {[%clk 0:00:19]}  b4 {[%clk 0:00:25]} 39. Be3+ {[%clk 0:00:16]}  Kb5 {[%clk 0:00:25]} 40. Rg1 {[%clk 0:00:15]}  a5 {[%clk 0:00:21]} 41. g5 {[%clk 0:00:15]}  hxg5 {[%clk 0:00:20]} 42. hxg5 {[%clk 0:00:16]}  b3 {[%clk 0:00:18]} 43. g6 {[%clk 0:00:15]}  Re8 {[%clk 0:00:17]} 44. g7 {[%clk 0:00:15]}  Rg8 {[%clk 0:00:17]} 45. Bd4 {[%clk 0:00:15]}  Kb4 {[%clk 0:00:15]} 46. Bb2 {[%clk 0:00:15]}  a4 {[%clk 0:00:15]} 47. Rg4+ {[%clk 0:00:15]}  Kb5 {[%clk 0:00:15]} 48. Ke4 {[%clk 0:00:13]}  Kc4 {[%clk 0:00:13]} 49. Ke3+ {[%clk 0:00:12]}  Kb5 {[%clk 0:00:11]} 50. Kd3 {[%clk 0:00:12]}  Rd8+ {[%clk 0:00:10]} 51. Rd4 {[%clk 0:00:11]}  Rg8 {[%clk 0:00:10]} 52. Rd5+ {[%clk 0:00:09]}  Kb4 {[%clk 0:00:08]} 53. Rd4+ {[%clk 0:00:09]}  Kb5 {[%clk 0:00:08]} 54. Rd7 {[%clk 0:00:09]}  Kb4 {[%clk 0:00:07]} 55. Rb7+ {[%clk 0:00:09]}  Kc5 {[%clk 0:00:07]} 56. Ba3+ {[%clk 0:00:07]}  Kc6 {[%clk 0:00:06]} 57. Ra7 {[%clk 0:00:07]}  Kb6 {[%clk 0:00:06]} 58. Rf7 {[%clk 0:00:07]}  Kb5 {[%clk 0:00:05]} 59. Bb2 {[%clk 0:00:06]}  Kb4 {[%clk 0:00:04]} 60. Rf8 {[%clk 0:00:05]}  Rxg7 {[%clk 0:00:03]} 61. Bxg7 {[%clk 0:00:06]}  a3 {[%clk 0:00:01]} 62. Rb8+ {[%clk 0:00:06]}  Kc5 {[%clk 0:00:02]} 63. Kc3 {[%clk 0:00:05]}  a2 {[%clk 0:00:02]} 64. Kb2 {[%clk 0:00:06]}  a1=Q+ {[%clk 0:00:03]} 65. Kxa1 {[%clk 0:00:06]}  Kc4 {[%clk 0:00:04]} 66. Kb2 {[%clk 0:00:06]}  Kd3 {[%clk 0:00:04]} 67. Rxb3+ {[%clk 0:00:06]}  Ke4 {[%clk 0:00:05]} 68. Rc3 {[%clk 0:00:07]}  Kd5 {[%clk 0:00:06]} 69. Bf8 {[%clk 0:00:08]}  Ke4 {[%clk 0:00:07]} 70. Ba3 {[%clk 0:00:09]}  Kd5 {[%clk 0:00:07]} 71. Kc2 {[%clk 0:00:10]}  Kd4 {[%clk 0:00:08]} 72. Kd2 {[%clk 0:00:10]}  Kd5 {[%clk 0:00:08]} 73. Kd3 {[%clk 0:00:11]}  Ke5 {[%clk 0:00:08]} 74. Bc1 {[%clk 0:00:12]}  Kd5 {[%clk 0:00:09]} 75. Rc4 {[%clk 0:00:13]}  Ke6 {[%clk 0:00:09]} 76. Rc5 {[%clk 0:00:13]}  Kd6 {[%clk 0:00:09]} 77. Kd4 {[%clk 0:00:14]}  Ke6 {[%clk 0:00:09]} 78. Ke4 {[%clk 0:00:13]}  Kd7 {[%clk 0:00:10]} 79. Kd5 {[%clk 0:00:13]}  Ke7 {[%clk 0:00:10]} 80. Bb2 {[%clk 0:00:13]}  Kf7 {[%clk 0:00:09]} 81. Rc6 {[%clk 0:00:12]}  Kg8 {[%clk 0:00:09]} 82. Ke6 {[%clk 0:00:11]}  Kh7 {[%clk 0:00:10]} 83. Bc1 {[%clk 0:00:09]}  Kg6 {[%clk 0:00:09]} 84. Rc5 {[%clk 0:00:10]}  Kh7 {[%clk 0:00:09]} 85. Kf6 {[%clk 0:00:07]}  Kg8 {[%clk 0:00:07]} 86. Rh5 {[%clk 0:00:07]}  Kf8 {[%clk 0:00:06]} 87. Rh8# {[%clk 0:00:08]} 1-0


[Site "https://www.chess.com"]

[Event "Titled Tuesday Blitz May 10 Early 2022"]
[White "Martinez Alcantara, Jose Eduardo"]
[Black "Samunenkov, Ihor"]
[WhiteFideId "3805662"]
[BlackFideId "14187086"]
[WhiteElo "2690"]
[BlackElo "2409"]
[Result "1-0"]
[Round "08"]
[TimeControl "180+1"]
[Date "2022.05.10"]
[WhiteClock "0:01:08"]
[BlackClock "0:00:03"]

1. e4 {[%clk 0:03:00]}  c6 {[%clk 0:02:54]} 2. d4 {[%clk 0:03:00]}  d5 {[%clk 0:02:54]} 3. e5 {[%clk 0:03:01]}  Bf5 {[%clk 0:02:55]} 4. h4 {[%clk 0:03:01]}  h5 {[%clk 0:02:54]} 5. Bd3 {[%clk 0:03:02]}  Bxd3 {[%clk 0:02:54]} 6. Qxd3 {[%clk 0:03:02]}  Qa5+ {[%clk 0:02:54]} 7. b4 {[%clk 0:03:00]}  Qa6 {[%clk 0:02:48]} 8. e6 {[%clk 0:03:01]}  Qxd3 {[%clk 0:02:41]} 9. cxd3 {[%clk 0:03:02]}  fxe6 {[%clk 0:02:20]} 10. Nd2 {[%clk 0:03:02]}  Nd7 {[%clk 0:02:19]} 11. Ndf3 {[%clk 0:02:58]}  Nh6 {[%clk 0:02:04]} 12. Nh3 {[%clk 0:02:58]}  Ng4 {[%clk 0:02:00]} 13. Nf4 {[%clk 0:02:54]}  e5 {[%clk 0:01:54]} 14. Ng6 {[%clk 0:02:54]}  Rg8 {[%clk 0:01:54]} 15. dxe5 {[%clk 0:02:46]}  e6 {[%clk 0:01:51]} 16. Bd2 {[%clk 0:02:43]}  Kf7 {[%clk 0:01:45]} 17. Nxf8 {[%clk 0:02:44]}  Raxf8 {[%clk 0:01:40]} 18. d4 {[%clk 0:02:44]}  Nb6 {[%clk 0:01:29]} 19. Ke2 {[%clk 0:02:39]}  Nc4 {[%clk 0:01:27]} 20. Bg5 {[%clk 0:02:34]}  a5 {[%clk 0:01:00]} 21. bxa5 {[%clk 0:02:26]}  Ra8 {[%clk 0:00:58]} 22. Rhb1 {[%clk 0:02:26]}  Ra7 {[%clk 0:00:56]} 23. Bd2 {[%clk 0:02:24]}  Rga8 {[%clk 0:00:52]} 24. Bc3 {[%clk 0:02:16]}  Ke8 {[%clk 0:00:36]} 25. Ne1 {[%clk 0:02:12]}  Nxa5 {[%clk 0:00:32]} 26. Bxa5 {[%clk 0:01:59]}  Rxa5 {[%clk 0:00:32]} 27. Rb2 {[%clk 0:02:00]}  Ra4 {[%clk 0:00:17]} 28. Nd3 {[%clk 0:02:00]}  Rxd4 {[%clk 0:00:13]} 29. Rxb7 {[%clk 0:02:00]}  Ra3 {[%clk 0:00:13]} 30. Nc5 {[%clk 0:01:55]}  Rc4 {[%clk 0:00:09]} 31. Nb3 {[%clk 0:01:31]}  Rc2+ {[%clk 0:00:09]} 32. Kd3 {[%clk 0:01:32]}  Raxa2 {[%clk 0:00:08]} 33. Rxa2 {[%clk 0:01:31]}  Rxa2 {[%clk 0:00:09]} 34. f4 {[%clk 0:01:32]}  Rxg2 {[%clk 0:00:08]} 35. Nd4 {[%clk 0:01:30]}  Rg3+ {[%clk 0:00:06]} 36. Kd2 {[%clk 0:01:29]}  Rg2+ {[%clk 0:00:06]} 37. Kc3 {[%clk 0:01:29]}  c5 {[%clk 0:00:03]} 38. Nxe6 {[%clk 0:01:29]}  Ne3 {[%clk 0:00:04]} 39. Nxc5 {[%clk 0:01:19]}  Rc2+ {[%clk 0:00:03]} 40. Kd3 {[%clk 0:01:20]}  Rxc5 {[%clk 0:00:02]} 41. Kxe3 {[%clk 0:01:20]}  Rc4 {[%clk 0:00:02]} 42. Rxg7 {[%clk 0:01:21]}  Rc3+ {[%clk 0:00:02]} 43. Kd4 {[%clk 0:01:21]}  Rf3 {[%clk 0:00:02]} 44. Kxd5 {[%clk 0:01:20]}  Rxf4 {[%clk 0:00:02]} 45. Kd6 {[%clk 0:01:21]}  Rd4+ {[%clk 0:00:02]} 46. Ke6 {[%clk 0:01:21]}  Kf8 {[%clk 0:00:01]} 47. Rf7+ {[%clk 0:01:18]}  Kg8 {[%clk 0:00:02]} 48. Rf5 {[%clk 0:01:16]}  Rxh4 {[%clk 0:00:02]} 49. Ke7 {[%clk 0:01:14]}  Ra4 {[%clk 0:00:02]} 50. Rg5+ {[%clk 0:01:13]}  Kh7 {[%clk 0:00:02]} 51. e6 {[%clk 0:01:09]}  Ra7+ {[%clk 0:00:02]} 52. Kf6 {[%clk 0:01:09]}  Ra6 {[%clk 0:00:03]} 53. Rxh5+ {[%clk 0:01:09]}  Kg8 {[%clk 0:00:03]} 54. Rb5 {[%clk 0:01:09]}  Rc6 {[%clk 0:00:02]} 55. Rb8+ {[%clk 0:01:09]}  Kh7 {[%clk 0:00:03]} 56. Kf7 {[%clk 0:01:09]}  Rc1 {[%clk 0:00:03]} 57. e7 {[%clk 0:01:08]} 1-0


[Site "https://www.chess.com"]

[Event "Titled Tuesday Blitz May 10 Early 2022"]
[White "Maximov, Dmitry"]
[Black "Sarana, Alexey"]
[WhiteFideId "14105659"]
[BlackFideId "24133795"]
[WhiteElo "2494"]
[BlackElo "2666"]
[Result "0-1"]
[Round "08"]
[TimeControl "180+1"]
[Date "2022.05.10"]
[WhiteClock "0:00:34"]
[BlackClock "0:01:37"]

1. e4 {[%clk 0:03:00]}  c5 {[%clk 0:03:00]} 2. Nf3 {[%clk 0:03:00]}  d6 {[%clk 0:03:00]} 3. Bb5+ {[%clk 0:03:00]}  Nd7 {[%clk 0:02:57]} 4. O-O {[%clk 0:03:00]}  a6 {[%clk 0:02:57]} 5. Bd3 {[%clk 0:03:00]}  b5 {[%clk 0:02:56]} 6. Re1 {[%clk 0:02:59]}  Bb7 {[%clk 0:02:56]} 7. Bf1 {[%clk 0:02:59]}  Ngf6 {[%clk 0:02:56]} 8. d3 {[%clk 0:02:57]}  g6 {[%clk 0:02:54]} 9. a4 {[%clk 0:02:58]}  Bg7 {[%clk 0:02:54]} 10. Nc3 {[%clk 0:02:57]}  b4 {[%clk 0:02:54]} 11. Ne2 {[%clk 0:02:57]}  O-O {[%clk 0:02:54]} 12. Ng3 {[%clk 0:02:57]}  a5 {[%clk 0:02:52]} 13. Rb1 {[%clk 0:02:57]}  e5 {[%clk 0:02:49]} 14. b3 {[%clk 0:02:57]}  d5 {[%clk 0:02:49]} 15. h3 {[%clk 0:02:54]}  h6 {[%clk 0:02:47]} 16. Nh2 {[%clk 0:02:52]}  Re8 {[%clk 0:02:35]} 17. Ng4 {[%clk 0:02:52]}  Nxg4 {[%clk 0:02:33]} 18. Qxg4 {[%clk 0:02:52]}  Nf6 {[%clk 0:02:31]} 19. Qf3 {[%clk 0:02:53]}  c4 {[%clk 0:02:17]} 20. dxc4 {[%clk 0:02:46]}  dxe4 {[%clk 0:02:17]} 21. Qe2 {[%clk 0:02:42]}  Qc7 {[%clk 0:02:10]} 22. Be3 {[%clk 0:02:37]}  Nd7 {[%clk 0:02:10]} 23. Rbd1 {[%clk 0:02:25]}  f5 {[%clk 0:02:06]} 24. Bc1 {[%clk 0:02:25]}  Nc5 {[%clk 0:02:03]} 25. h4 {[%clk 0:02:16]}  f4 {[%clk 0:01:59]} 26. Nh1 {[%clk 0:02:15]}  Rad8 {[%clk 0:01:57]} 27. Qg4 {[%clk 0:02:11]}  Qf7 {[%clk 0:01:51]} 28. Rxd8 {[%clk 0:01:50]}  Rxd8 {[%clk 0:01:52]} 29. Rd1 {[%clk 0:01:51]}  Rf8 {[%clk 0:01:52]} 30. Rd6 {[%clk 0:01:48]}  Kh7 {[%clk 0:01:52]} 31. Qd1 {[%clk 0:01:32]}  e3 {[%clk 0:01:47]} 32. fxe3 {[%clk 0:01:29]}  f3 {[%clk 0:01:47]} 33. g3 {[%clk 0:01:06]}  f2+ {[%clk 0:01:40]} 34. Kh2 {[%clk 0:01:06]}  Bf3 {[%clk 0:01:39]} 35. Qd2 {[%clk 0:00:45]}  Ne4 {[%clk 0:01:39]} 36. Qd3 {[%clk 0:00:45]}  Bxh1 {[%clk 0:01:39]} 37. h5 {[%clk 0:00:41]}  Qf3 {[%clk 0:01:40]} 38. Rxg6 {[%clk 0:00:38]}  Qxh5+ {[%clk 0:01:40]} 39. Bh3 {[%clk 0:00:36]}  Qxg6 {[%clk 0:01:39]} 40. Kxh1 {[%clk 0:00:34]}  Nxg3+ {[%clk 0:01:37]} 0-1


[Site "https://www.chess.com"]

[Event "Titled Tuesday Blitz May 10 Early 2022"]
[White "Mikhalsky, Vladimir"]
[Black "Karolczuk, Iwo"]
[WhiteFideId "14144352"]
[BlackFideId "21816972"]
[WhiteElo "2301"]
[BlackElo "2258"]
[Result "0-1"]
[Round "08"]
[TimeControl "180+1"]
[Date "2022.05.11"]
[WhiteClock "0:00:09"]
[BlackClock "0:00:15"]

1. d4 {[%clk 0:03:00]}  Nf6 {[%clk 0:02:55]} 2. c4 {[%clk 0:03:00]}  g6 {[%clk 0:02:54]} 3. f3 {[%clk 0:02:59]}  c5 {[%clk 0:02:46]} 4. d5 {[%clk 0:02:58]}  Bg7 {[%clk 0:02:46]} 5. e4 {[%clk 0:02:57]}  d6 {[%clk 0:02:47]} 6. Nc3 {[%clk 0:02:57]}  O-O {[%clk 0:02:47]} 7. Be3 {[%clk 0:02:57]}  e6 {[%clk 0:02:46]} 8. Qd2 {[%clk 0:02:56]}  exd5 {[%clk 0:02:46]} 9. cxd5 {[%clk 0:02:56]}  Na6 {[%clk 0:02:45]} 10. Bc4 {[%clk 0:02:41]}  Nc7 {[%clk 0:02:43]} 11. a4 {[%clk 0:02:38]}  b6 {[%clk 0:02:43]} 12. Nge2 {[%clk 0:02:36]}  a6 {[%clk 0:02:42]} 13. O-O {[%clk 0:02:35]}  Rb8 {[%clk 0:02:42]} 14. Qd3 {[%clk 0:02:31]}  Qd7 {[%clk 0:02:32]} 15. f4 {[%clk 0:02:01]}  b5 {[%clk 0:02:29]} 16. axb5 {[%clk 0:02:01]}  axb5 {[%clk 0:02:30]} 17. Ba2 {[%clk 0:02:00]}  Ng4 {[%clk 0:02:27]} 18. Bd2 {[%clk 0:01:57]}  c4 {[%clk 0:01:38]} 19. Qg3 {[%clk 0:01:52]}  b4 {[%clk 0:01:37]} 20. Nd1 {[%clk 0:01:50]}  b3 {[%clk 0:01:08]} 21. Bb1 {[%clk 0:01:49]}  f5 {[%clk 0:00:57]} 22. Bc3 {[%clk 0:01:32]}  fxe4 {[%clk 0:00:55]} 23. Bxe4 {[%clk 0:01:29]}  Nf6 {[%clk 0:00:54]} 24. Bf3 {[%clk 0:01:25]}  Ncxd5 {[%clk 0:00:53]} 25. Bd4 {[%clk 0:01:05]}  Nb4 {[%clk 0:00:53]} 26. Ra7 {[%clk 0:01:01]}  Bb7 {[%clk 0:00:52]} 27. Ndc3 {[%clk 0:00:49]}  Nc6 {[%clk 0:00:51]} 28. Bxc6 {[%clk 0:00:38]}  Qxc6 {[%clk 0:00:52]} 29. f5 {[%clk 0:00:34]}  Nh5 {[%clk 0:00:41]} 30. Qg4 {[%clk 0:00:28]}  Nf6 {[%clk 0:00:32]} 31. Qg3 {[%clk 0:00:26]}  Rbe8 {[%clk 0:00:26]} 32. fxg6 {[%clk 0:00:24]}  h6 {[%clk 0:00:26]} 33. Nf4 {[%clk 0:00:20]}  Ne4 {[%clk 0:00:20]} 34. Nxe4 {[%clk 0:00:18]}  Bxd4+ {[%clk 0:00:20]} 35. Nf2 {[%clk 0:00:17]}  Rxf4 {[%clk 0:00:17]} 36. Rxb7 {[%clk 0:00:15]}  Bxf2+ {[%clk 0:00:16]} 37. Kh1 {[%clk 0:00:12]}  Bxg3 {[%clk 0:00:15]} 38. Rxf4 {[%clk 0:00:09]}  Re1+ {[%clk 0:00:15]} 0-1


[Site "https://www.chess.com"]